bitfinex/quotes_BTCUSD_20250328
["timestamp","ask_amount","ask_price","bid_price","bid_amount"]
[1743155470402,0.67425297,85250.0,85241.0,0.002]
[1743155472328,0.78851061,85250.0,85241.0,0.002]
[1743155474400,0.89151301,85250.0,85241.0,0.002]
[1743155474587,0.83481061,85250.0,85241.0,0.002]
[1743155478646,0.78851061,85250.0,85241.0,0.002]
[1743155482634,0.78851061,85250.0,85242.0,0.0751]
[1743155482891,0.67425297,85250.0,85242.0,0.0751]
[1743155484334,0.67425297,85250.0,85249.0,0.0806692]
[1743155485298,0.67325297,85250.0,85249.0,0.0806692]
[1743155485758,0.67125297,85250.0,85249.0,0.0806692]
[1743155485957,0.67225297,85250.0,85249.0,0.0806692]
[1743155489901,0.67225297,85250.0,85249.0,0.0001692]
[1743155504082,0.5476722,85250.0,85249.0,0.0001692]
[1743155504498,0.0013382,85250.0,85249.0,0.2347752]
[1743155504729,0.0013382,85250.0,85249.0,0.3292052]
[1743155505369,0.0003382,85250.0,85249.0,0.3302052]
[1743155505874,0.0003382,85250.0,85249.0,0.3292052]
[1743155506378,0.0003382,85250.0,85249.0,0.3302052]
[1743155507038,0.0003382,85250.0,85249.0,0.3184752]
[1743155507251,0.2466722,85250.0,85249.0,0.0041692]
[1743155511215,0.2466722,85250.0,85249.0,0.0031692]
[1743155511439,0.2466722,85250.0,85249.0,0.0001692]
[1743155511603,0.2466722,85250.0,85249.0,0.0031692]
[1743155516642,0.2466722,85250.0,85249.0,0.0011692]
[1743155517418,0.2466722,85250.0,85249.0,0.0001692]
[1743155517758,0.2476722,85250.0,85249.0,0.0001692]
[1743155523480,0.5476722,85250.0,85249.0,0.0001692]
[1743155523698,0.66192984,85250.0,85249.0,0.0001692]
[1743155525313,0.5476722,85250.0,85249.0,0.0001692]
[1743155529151,0.5473922,85250.0,85249.0,0.0001692]
[1743155531239,0.81909344,85250.0,85249.0,2e-07]
[1743155531652,0.78434984,85250.0,85249.0,2e-07]
[1743155532053,0.78334984,85250.0,85249.0,2e-07]
[1743155532440,0.89760748,85250.0,85249.0,2e-07]
[1743155532837,0.78334984,85250.0,85249.0,2e-07]
[1743155533043,0.78534984,85250.0,85249.0,2e-07]
[1743155533450,0.78834984,85250.0,85249.0,2e-07]
[1743155535738,0.672457,85242.0,85241.0,2e-07]
[1743155535933,1.03333228,85242.0,85241.0,2e-07]
[1743155536648,0.246382,85233.0,85232.0,4e-07]
[1743155536833,0.66063964,85233.0,85232.0,4e-07]
[1743155537046,0.77489728,85233.0,85232.0,4e-07]
[1743155537342,0.85759728,85233.0,85232.0,4e-07]
[1743155538273,0.86259728,85233.0,85232.0,4e-07]
[1743155539613,0.86659728,85233.0,85232.0,4e-07]
[1743155544893,0.75233964,85233.0,85232.0,4e-07]
[1743155545098,0.80199964,85233.0,85232.0,4e-07]
[1743155545643,0.80233784,85233.0,85232.0,4e-07]
[1743155546878,0.534708,85212.0,85209.0,0.0127099]
[1743155547086,0.546443,85212.0,85209.0,0.0127099]
[1743155547715,0.55504817,85212.0,85209.0,0.0127099]
[1743155548281,0.55511058,85212.0,85209.0,0.0127099]
[1743155548531,0.59107093,85212.0,85209.0,0.0127099]
[1743155549828,0.59107093,85212.0,85209.0,0.0908099]
[1743155550478,0.59107093,85212.0,85209.0,0.0127099]
[1743155551112,0.59207093,85212.0,85209.0,0.0127099]
[1743155551812,0.58346576,85212.0,85209.0,0.0127099]
[1743155557723,0.58346576,85212.0,85211.0,0.0021691]
[1743155561685,0.33702276,85212.0,85211.0,0.0819691]
[1743155561902,0.57173076,85212.0,85211.0,0.0819691]
[1743155562134,0.58346576,85212.0,85211.0,0.0819691]
[1743155562534,0.58246576,85212.0,85211.0,0.0819691]
[1743155566167,0.55850262,85212.0,85211.0,0.0819691]
[1743155566360,6.241e-05,85212.0,85211.0,0.48777274]
[1743155569859,6.241e-05,85212.0,85211.0,0.63467359]
[1743155571278,6.241e-05,85212.0,85211.0,0.63967359]
[1743155581704,6.241e-05,85212.0,85211.0,1.19823359]
[1743155585196,6.241e-05,85212.0,85211.0,1.06087359]
[1743155585392,6.241e-05,85212.0,85211.0,1.19319359]
[1743155594659,6.241e-05,85212.0,85211.0,1.19819359]
[1743155594873,6.241e-05,85212.0,85211.0,2.06416559]
[1743155595206,4.1e-07,85212.0,85211.0,2.08916559]
[1743155595418,4.1e-07,85212.0,85211.0,1.22319359]
[1743155596252,4.1e-07,85212.0,85211.0,1.52819359]
[1743155596457,4.1e-07,85212.0,85211.0,1.56478637]
[1743155596835,4.1e-07,85212.0,85211.0,1.56578637]
[1743155598981,0.0003382,85233.0,85224.0,0.246408]
[1743155599197,0.0003382,85233.0,85224.0,0.42504949]
[1743155600344,0.0003382,85233.0,85224.0,0.42604949]
[1743155601185,0.0003382,85233.0,85224.0,0.42504949]
[1743155601529,0.0003382,85233.0,85224.0,0.42604949]
[1743155602190,0.0003382,85233.0,85224.0,0.42804949]
[1743155602615,0.0003382,85233.0,85224.0,0.45111]
[1743155602814,0.0003382,85233.0,85224.0,0.44911]
[1743155603033,0.0003382,85233.0,85224.0,0.45311]
[1743155604608,0.0003382,85233.0,85224.0,0.45811]
[1743155607156,0.0003382,85233.0,85224.0,0.51792949]
[1743155607355,0.0003382,85233.0,85224.0,0.38064949]
[1743155607499,0.0003382,85233.0,85224.0,0.51292949]
[1743155610044,0.0003382,85225.0,85224.0,0.51292949]
[1743155610403,0.0003382,85225.0,85224.0,1.07136949]
[1743155617288,0.5003382,85225.0,85224.0,1.07136949]
[1743155619154,0.5003382,85225.0,85224.0,1.1577671]
[1743155623246,0.5003382,85225.0,85224.0,1.1577271]
[1743155625756,0.5003382,85225.0,85224.0,1.14672949]
[1743155626639,0.5003382,85225.0,85224.0,1.15773928]
[1743155629001,0.5003382,85225.0,85224.0,1.08233928]
[1743155631017,0.5003382,85225.0,85224.0,1.07132949]
[1743155631467,0.5003382,85225.0,85224.0,1.07632949]
[1743155631708,0.5003382,85225.0,85224.0,1.18992998]
[1743155631940,0.5003382,85225.0,85224.0,1.90279198]
[1743155632427,0.5003382,85225.0,85224.0,1.91380166]
[1743155632630,0.5003382,85225.0,85224.0,2.21380166]
[1743155632894,2e-07,85225.0,85224.0,2.24690117]
[1743155633129,2e-07,85225.0,85224.0,1.53703917]
[1743155633388,2e-07,85225.0,85224.0,1.54103917]
[1743155637735,2e-07,85225.0,85224.0,2.24103917]
[1743155638764,4e-07,85233.0,85232.0,0.576385]
[1743155638977,4e-07,85233.0,85232.0,0.78408349]
[1743155639362,4e-07,85233.0,85232.0,0.91632349]
[1743155639998,4e-07,85233.0,85232.0,0.92733317]
[1743155640226,4e-07,85233.0,85232.0,0.93333317]
[1743155642570,4e-07,85233.0,85232.0,0.9571738]
[1743155642973,4e-07,85233.0,85232.0,0.99378975]
[1743155645360,4e-07,85233.0,85232.0,0.9571738]
[1743155648803,4e-07,85233.0,85232.0,1.55209471]
[1743155649132,4e-07,85233.0,85232.0,1.65753141]
[1743155649447,4e-07,85233.0,85232.0,1.69277741]
[1743155652115,4e-07,85233.0,85232.0,1.58734071]
[1743155652560,4e-07,85233.0,85232.0,1.58750971]
[1743155653465,4e-07,85233.0,85232.0,2.28750971]
[1743155655649,4e-07,85233.0,85232.0,2.33660971]
[1743155656334,4e-07,85233.0,85232.0,2.33260971]
[1743155656567,4e-07,85233.0,85232.0,2.45430971]
[1743155656815,4e-07,85233.0,85232.0,2.46030971]
[1743155657046,2e-07,85250.0,85249.0,0.67097685]
[1743155657271,2e-07,85250.0,85249.0,0.91743449]
[1743155657518,2e-07,85250.0,85249.0,0.95401786]
[1743155657964,2e-07,85250.0,85249.0,0.97060342]
[1743155658197,2e-07,85250.0,85249.0,1.09430342]
[1743155658926,2e-07,85250.0,85249.0,1.1053131]
[1743155659207,2e-07,85250.0,85249.0,1.11425856]
[1743155659440,2e-07,85250.0,85249.0,1.99349044]
[1743155660418,2e-07,85250.0,85249.0,1.99949044]
[1743155661757,2e-07,85250.0,85249.0,1.86729044]
[1743155661994,2e-07,85250.0,85249.0,1.99949044]
[1743155662954,2e-07,85250.0,85249.0,1.87579044]
[1743155663161,2e-07,85250.0,85249.0,1.99939044]
[1743155664709,4e-07,85276.0,85271.0,0.56081385]
[1743155664913,4e-07,85276.0,85275.0,0.38005949]
[1743155665117,4e-07,85276.0,85275.0,0.50721949]
[1743155665337,4e-07,85276.0,85275.0,0.51221949]
[1743155665543,4e-07,85276.0,85275.0,0.54745049]
[1743155665941,0.00013405,85276.0,85275.0,0.54745049]
[1743155666194,0.00013405,85276.0,85275.0,0.55145049]
[1743155666660,0.00013405,85276.0,85275.0,0.56246017]
[1743155666833,0.00013405,85276.0,85275.0,0.56746017]
[1743155672055,0.00013405,85276.0,85275.0,0.53222917]
[1743155674425,0.00013405,85276.0,85275.0,0.52722917]
[1743155674600,0.12283405,85276.0,85275.0,0.52722917]
[1743155675271,0.04543405,85276.0,85275.0,0.52722917]
[1743155676993,0.04543405,85276.0,85275.0,0.52739807]
[1743155677204,0.04543405,85276.0,85275.0,0.51638839]
[1743155679758,0.00013405,85276.0,85275.0,0.51638839]
[1743155683127,0.00013405,85276.0,85275.0,0.51634839]
[1743155688722,0.00013405,85276.0,85275.0,1.07442839]
[1743155690036,5e-08,85276.0,85275.0,1.37942839]
[1743155690234,5e-08,85276.0,85275.0,1.49374782]
[1743155691028,5e-08,85276.0,85275.0,1.50974782]
[1743155691177,5e-08,85276.0,85275.0,1.51874782]
[1743155691384,0.0003384,85295.0,85294.0,0.246207]
[1743155691700,0.0003384,85295.0,85294.0,0.50712549]
[1743155693430,0.0003384,85295.0,85294.0,0.51312549]
[1743155693616,0.0003384,85295.0,85294.0,0.52187345]
[1743155694006,0.0003384,85295.0,85294.0,0.52587345]
[1743155695263,0.0003384,85295.0,85294.0,0.53765474]
[1743155702439,0.0003384,85295.0,85294.0,0.51712549]
[1743155702634,0.0003384,85295.0,85294.0,0.38500549]
[1743155702835,0.0003384,85295.0,85294.0,0.51712549]
[1743155703280,0.0003384,85295.0,85294.0,1.07512549]
[1743155703703,0.0003384,85295.0,85294.0,0.94300549]
[1743155703917,0.60169624,85295.0,85294.0,0.01]
[1743155704135,0.68189624,85295.0,85294.0,0.01]
[1743155704350,0.6737424,85295.0,85294.0,0.01]
[1743155704467,0.68540824,85295.0,85294.0,0.01]
[1743155704669,0.68540824,85295.0,85294.0,0.004]
[1743155704873,0.68540824,85295.0,85284.0,0.13212]
[1743155704874,0.234507,85285.0,85284.0,0.13212]
[1743155705109,0.234507,85285.0,85284.0,0.24637764]
[1743155705309,0.246232,85285.0,85284.0,0.24637764]
[1743155705547,0.246232,85285.0,85284.0,0.26091849]
[1743155706468,0.24623,85286.0,85285.0,0.01454085]
[1743155706774,0.24623,85286.0,85285.0,0.12879849]
[1743155707802,0.24623,85286.0,85285.0,0.11425764]
[1743155708018,0.32303,85286.0,85285.0,0.11425764]
[1743155708807,0.32303,85286.0,85285.0,0.12425764]
[1743155712033,0.24623,85286.0,85285.0,0.12425764]
[1743155714525,0.234505,85286.0,85285.0,0.12425764]
[1743155715202,0.246222,85289.0,85285.0,0.12425764]
[1743155715546,0.246222,85289.0,85286.0,0.234505]
[1743155715742,0.234499,85290.0,85286.0,0.234505]
[1743155715889,0.234499,85290.0,85285.0,0.35876464]
[1743155716090,0.234499,85289.0,85285.0,0.35276464]
[1743155716440,0.234491,85291.0,85288.0,0.234497]
[1743155716667,0.312689,85292.0,85289.0,0.234495]
[1743155717050,0.0590624,85295.0,85289.0,0.234495]
[1743155717051,0.0473384,85295.0,85291.0,0.011724]
[1743155717281,0.234485,85294.0,85292.0,0.11425764]
[1743155717408,0.246212,85292.0,85291.0,0.11425764]
[1743155718966,0.246212,85292.0,85291.0,0.11925764]
[1743155719807,0.246212,85292.0,85291.0,0.005]
[1743155720986,0.246212,85292.0,85291.0,0.008]
[1743155723664,0.2465498,85292.0,85291.0,0.008]
[1743155725210,0.3272498,85292.0,85291.0,0.008]
[1743155725621,0.3755498,85292.0,85291.0,0.008]
[1743155726811,0.3755498,85292.0,85291.0,0.005]
[1743155727522,0.6755498,85292.0,85291.0,0.005]
[1743155727702,0.246255,85277.0,85276.0,0.5582889]
[1743155727915,0.246255,85277.0,85276.0,0.0001689]
[1743155728380,0.41082446,85277.0,85276.0,0.0001689]
[1743155728616,0.68592696,85277.0,85276.0,0.0001689]
[1743155729056,0.68592696,85277.0,85276.0,0.0051689]
[1743155729287,0.70915224,85277.0,85276.0,0.0051689]
[1743155729477,0.70915224,85277.0,85276.0,0.0001689]
[1743155730998,0.70915224,85277.0,85276.0,0.0041689]
[1743155731296,0.82340988,85277.0,85276.0,0.0011689]
[1743155731497,0.82340988,85277.0,85276.0,0.0001689]
[1743155731611,0.70915224,85277.0,85276.0,0.0001689]
[1743155733251,1.12685224,85277.0,85276.0,0.0001689]
[1743155735435,1.12719004,85277.0,85276.0,0.0001689]
[1743155741046,0.669358,85276.0,85275.0,8e-07]
[1743155741247,0.89787328,85276.0,85275.0,8e-07]
[1743155742982,0.78361564,85276.0,85275.0,8e-07]
[1743155743839,0.91573564,85276.0,85275.0,8e-07]
[1743155744635,0.91773564,85276.0,85275.0,8e-07]
[1743155745104,1.33543564,85276.0,85275.0,8e-07]
[1743155759205,1.45003148,85276.0,85275.0,8e-07]
[1743155759379,1.33577384,85276.0,85275.0,8e-07]
[1743155777055,1.37051732,85276.0,85275.0,8e-07]
[1743155777257,1.37051732,85276.0,85232.0,0.000169]
[1743155777258,0.246374,85236.0,85235.0,0.0827]
[1743155778171,0.246374,85236.0,85235.0,0.1316]
[1743155778370,0.246374,85236.0,85235.0,0.1336]
[1743155778869,0.246374,85236.0,85235.0,0.1376]
[1743155781782,0.246374,85236.0,85235.0,0.1377691]
[1743155783870,0.24635,85246.0,85240.0,0.0787]
[1743155784074,0.01173,85245.0,85242.0,0.313325]
[1743155784283,0.234617,85245.0,85243.0,0.19295764]
[1743155784484,0.234617,85245.0,85244.0,0.0829]
[1743155784833,0.234619,85246.0,85245.0,0.0829]
[1743155785432,0.011729,85254.0,85249.0,0.0497]
[1743155785670,0.234604,85250.0,85249.0,0.0497]
[1743155785898,0.234603,85251.0,85249.0,0.0497]
[1743155786114,0.234604,85250.0,85249.0,0.0497]
[1743155786265,0.0229272,85254.0,85251.0,0.01173]
[1743155786466,0.234601,85251.0,85250.0,0.0804]
[1743155786671,0.246331,85251.0,85250.0,0.0804]
[1743155788644,0.246331,85251.0,85250.0,0.0834]
[1743155789648,0.234598,85252.0,85250.0,0.0834]
[1743155790250,0.246331,85251.0,85250.0,0.0834]
[1743155790915,0.246331,85251.0,85250.0,0.0824]
[1743155791061,0.234598,85252.0,85250.0,0.0824]
[1743155791494,0.234601,85251.0,85250.0,0.0814]
[1743155791695,0.234598,85252.0,85250.0,0.0814]
[1743155791953,0.234598,85252.0,85250.0,0.0824]
[1743155792253,0.2575282,85254.0,85250.0,0.0824]
[1743155792461,0.2346,85252.0,85250.0,0.0814]
[1743155792664,0.234601,85251.0,85250.0,0.0834]
[1743155792866,0.2346,85252.0,85250.0,0.0844]
[1743155793211,0.234601,85251.0,85250.0,0.0844]
[1743155793416,0.246331,85251.0,85250.0,0.0824]
[1743155793857,0.246331,85251.0,85250.0,0.0825691]
[1743155794065,0.246327,85252.0,85250.0,0.0825691]
[1743155794314,0.234596,85253.0,85251.0,0.2346]
[1743155794481,0.0346562,85254.0,85250.0,0.0805691]
[1743155794688,0.0346562,85254.0,85251.0,0.2346]
[1743155794689,0.2692512,85254.0,85251.0,0.2346]
[1743155794913,0.234596,85253.0,85251.0,0.2346]
[1743155795106,0.2575222,85254.0,85251.0,0.2346]
[1743155795254,0.234597,85253.0,85250.0,0.3171681]
[1743155795448,0.234597,85253.0,85250.0,0.3161681]
[1743155795710,0.234597,85253.0,85250.0,0.3151681]
[1743155796240,0.234598,85252.0,85251.0,0.001]
[1743155796561,0.234598,85252.0,85250.0,0.0805691]
[1743155796761,0.234598,85252.0,85250.0,0.3151721]
[1743155796991,0.234598,85252.0,85250.0,0.0805691]
[1743155798346,0.234598,85252.0,85250.0,0.0815691]
[1743155798791,0.234598,85252.0,85250.0,0.0835691]
[1743155799268,0.234598,85252.0,85250.0,0.0815691]
[1743155799675,0.234598,85252.0,85250.0,0.0835691]
[1743155800317,0.234598,85252.0,85250.0,0.3181721]
[1743155801414,0.234598,85252.0,85250.0,0.0835691]
[1743155802349,0.234598,85252.0,85250.0,0.3181721]
[1743155802996,0.234598,85252.0,85250.0,0.0835691]
[1743155803649,0.234598,85252.0,85250.0,0.3181721]
[1743155804384,0.234601,85251.0,85250.0,0.0835691]
[1743155805315,0.234601,85251.0,85250.0,0.0815691]
[1743155805795,0.234601,85251.0,85250.0,0.0825691]
[1743155805987,0.234601,85251.0,85250.0,0.0835691]
[1743155807754,0.234595,85253.0,85250.0,0.0835691]
[1743155807973,0.234599,85252.0,85250.0,0.0835691]
[1743155808640,0.234599,85252.0,85250.0,0.0805691]
[1743155808835,0.234598,85252.0,85250.0,0.3151721]
[1743155809059,0.234598,85252.0,85250.0,0.3171721]
[1743155809510,0.0229272,85254.0,85251.0,0.01173]
[1743155809739,0.234597,85253.0,85251.0,0.2346]
[1743155809958,0.234597,85253.0,85250.0,0.3181721]
[1743155810182,0.2346,85252.0,85250.0,0.0835691]
[1743155810455,0.2692492,85254.0,85250.0,0.0835691]
[1743155810456,0.0346562,85254.0,85250.0,0.0835691]
[1743155810648,0.2346,85252.0,85250.0,0.0835691]
[1743155811629,0.2346,85252.0,85250.0,0.0815691]
[1743155811837,0.2346,85252.0,85250.0,0.3151721]
[1743155812013,0.2346,85252.0,85251.0,0.001]
[1743155812410,0.234601,85251.0,85250.0,0.0805691]
[1743155812642,0.234601,85251.0,85250.0,0.0815691]
[1743155812838,0.234601,85251.0,85250.0,0.0835691]
[1743155813037,0.234601,85251.0,85250.0,0.0825691]
[1743155813450,0.234601,85251.0,85250.0,0.0805691]
[1743155813654,0.234601,85251.0,85250.0,0.0825691]
[1743155814670,0.0346562,85254.0,85250.0,0.0825691]
[1743155814894,0.234601,85251.0,85250.0,0.0835691]
[1743155815772,0.234601,85251.0,85250.0,0.0805691]
[1743155815999,0.234601,85251.0,85250.0,0.0815691]
[1743155816450,0.234601,85251.0,85250.0,0.0805691]
[1743155816921,0.234601,85251.0,85250.0,0.0835691]
[1743155820765,0.2346,85252.0,85250.0,0.0835691]
[1743155821592,0.246331,85251.0,85250.0,0.0031691]
[1743155821800,0.246331,85251.0,85250.0,0.0011691]
[1743155821994,0.246331,85251.0,85250.0,0.0001691]
[1743155822206,0.246331,85251.0,85250.0,0.0021691]
[1743155822540,0.246331,85251.0,85250.0,0.0031691]
[1743155822891,0.246331,85251.0,85250.0,0.0001691]
[1743155823093,0.246331,85251.0,85250.0,0.0021691]
[1743155823331,0.246331,85251.0,85250.0,0.0031691]
[1743155827315,0.234611,85248.0,85246.0,0.3336101]
[1743155827524,0.234612,85247.0,85246.0,0.21325474]
[1743155828677,0.234611,85248.0,85246.0,0.44786974]
[1743155828880,0.234611,85248.0,85246.0,0.45286974]
[1743155829226,0.234612,85247.0,85246.0,0.21525474]
[1743155829612,0.234612,85247.0,85246.0,0.21625474]
[1743155831595,0.234612,85247.0,85246.0,0.21725474]
[1743155831803,0.234612,85247.0,85246.0,0.21625474]
[1743155832036,0.234604,85250.0,85247.0,0.23461]
[1743155832288,0.234604,85250.0,85248.0,0.234607]
[1743155832784,0.246331,85251.0,85249.0,0.234606]
[1743155833213,0.246331,85251.0,85248.0,0.234607]
[1743155834639,0.234604,85250.0,85248.0,0.234607]
[1743155834839,0.234604,85250.0,85248.0,0.235607]
[1743155835090,0.234602,85251.0,85249.0,0.234606]
[1743155835314,0.234605,85250.0,85248.0,0.235608]
[1743155835540,0.011729,85252.0,85248.0,0.236607]
[1743155835784,0.234605,85250.0,85248.0,0.002]
[1743155836042,0.0003382,85276.0,85266.0,0.011728]
[1743155836383,0.0003382,85276.0,85274.0,0.26080485]
[1743155836628,0.2348712,85276.0,85274.0,0.12879849]
[1743155836861,0.0003382,85276.0,85274.0,0.11425764]
[1743155837084,0.2465992,85275.0,85274.0,0.11425764]
[1743155837343,0.246281,85268.0,85258.0,0.13204]
[1743155837545,0.55828445,85268.0,85267.0,0.67265764]
[1743155838008,0.55828445,85268.0,85267.0,0.5584]
[1743155838436,0.55828445,85268.0,85267.0,0.5614]
[1743155839276,0.55828445,85268.0,85267.0,0.5584]
[1743155839479,0.55828445,85268.0,85267.0,0.5624]
[1743155839707,0.55828445,85268.0,85267.0,0.5634]
[1743155839910,0.55828445,85268.0,85267.0,0.5594]
[1743155840297,0.55828445,85268.0,85267.0,0.5614]
[1743155844576,0.58169582,85268.0,85267.0,0.5614]
[1743155845210,0.03541482,85268.0,85267.0,0.5614]
[1743155845413,0.26969237,85268.0,85267.0,0.5614]
[1743155846403,0.02341137,85268.0,85267.0,0.5614]
[1743155846609,0.02341137,85268.0,85267.0,0.92194164]
[1743155847222,0.02341137,85268.0,85267.0,0.99834164]
[1743155847967,0.2348722,85276.0,85269.0,0.011727]
[1743155848170,0.234538,85274.0,85271.0,0.24627]
[1743155848414,0.00038268,85275.0,85271.0,0.24627]
[1743155848654,0.02358998,85272.0,85271.0,0.24627]
[1743155848933,0.02358998,85272.0,85269.0,0.36053064]
[1743155848934,0.02358998,85272.0,85269.0,0.11425764]
[1743155849161,0.234548,85271.0,85269.0,0.11425764]
[1743155849583,0.26985998,85272.0,85269.0,0.11425764]
[1743155849805,0.234548,85271.0,85269.0,0.11425764]
[1743155850341,0.234547,85271.0,85269.0,0.11425764]
[1743155851097,0.234549,85270.0,85269.0,0.11425764]
[1743155851513,0.234549,85270.0,85269.0,0.11525764]
[1743155851910,0.02358998,85272.0,85271.0,0.01454085]
[1743155852166,0.02358998,85272.0,85271.0,0.36334449]
[1743155852319,0.02358998,85272.0,85271.0,0.37507149]
[1743155852522,0.00038268,85275.0,85274.0,0.26080485]
[1743155852746,0.00038268,85275.0,85274.0,0.45706249]
[1743155855542,0.00038268,85275.0,85274.0,0.45806249]
[1743155860911,0.00038268,85275.0,85274.0,0.47999089]
[1743155864509,0.00038268,85275.0,85274.0,0.61195089]
[1743155875161,0.27020135,85275.0,85274.0,0.0229284]
[1743155875379,0.34940135,85275.0,85274.0,0.0229284]
[1743155875586,0.36119304,85275.0,85274.0,0.0229284]
[1743155875813,0.36119304,85275.0,85274.0,0.001]
[1743155876016,0.33763537,85275.0,85274.0,0.001]
[1743155891299,0.25843537,85275.0,85274.0,0.001]
[1743155897837,0.24664368,85275.0,85274.0,0.001]
[1743155903464,0.00038268,85275.0,85274.0,0.43942164]
[1743155903867,0.00038268,85275.0,85274.0,0.58592249]
[1743155907101,0.00038268,85275.0,85274.0,0.45396249]
[1743155907295,0.00038268,85275.0,85274.0,0.58588249]
[1743155911159,0.00038268,85275.0,85274.0,0.12979849]
[1743155911362,0.24664368,85275.0,85274.0,0.001]
[1743155911803,0.32534368,85275.0,85274.0,0.001]
[1743155912472,0.62534368,85275.0,85274.0,0.001]
[1743155914713,0.64891067,85275.0,85274.0,0.001]
[1743155916736,0.57021067,85275.0,85274.0,0.001]
[1743155917393,0.00038268,85275.0,85274.0,0.001]
[1743155917807,0.24664368,85275.0,85274.0,0.001]
[1743155918123,0.00038268,85275.0,85274.0,0.001]
[1743155918323,0.23491768,85275.0,85274.0,0.001]
[1743155919306,0.00038268,85275.0,85274.0,0.001]
[1743155919510,0.00038268,85275.0,85274.0,0.247264]
[1743155919923,0.00038268,85275.0,85274.0,0.37606249]
[1743155924329,0.00038268,85275.0,85274.0,0.45766249]
[1743155929559,0.00038268,85275.0,85274.0,0.49625649]
[1743155929772,0.00038268,85275.0,85274.0,0.50798249]
[1743155940642,0.00038268,85275.0,85274.0,0.49625649]
[1743155940848,0.00038268,85275.0,85274.0,0.26171849]
[1743155941288,0.00038268,85275.0,85274.0,0.49625649]
[1743155942409,0.23491768,85275.0,85274.0,0.12979849]
[1743155942608,0.59834665,85275.0,85274.0,0.001]
[1743155942819,0.64414665,85275.0,85274.0,0.001]
[1743155943031,0.66787202,85275.0,85274.0,0.001]
[1743155944072,0.75077202,85275.0,85274.0,0.001]
[1743155945306,0.246307,85259.0,85258.0,0.14642085]
[1743155945513,0.246307,85259.0,85258.0,0.26067849]
[1743155947734,0.246307,85259.0,85258.0,0.26467849]
[1743155948110,0.246307,85259.0,85258.0,0.26767849]
[1743155949386,0.246307,85259.0,85258.0,0.13579849]
[1743155950312,0.234574,85261.0,85259.0,0.01454085]
[1743155950513,0.00038268,85275.0,85269.0,0.011727]
[1743155950727,0.00038268,85275.0,85274.0,0.01454085]
[1743155951068,0.00038268,85275.0,85274.0,0.45506249]
[1743155951750,0.00138268,85275.0,85274.0,0.45506249]
[1743155951947,0.00038268,85275.0,85274.0,0.45506249]
[1743155952277,0.00038268,85275.0,85274.0,0.58694249]
[1743155952427,0.00038268,85275.0,85274.0,0.59194249]
[1743155974622,0.00038268,85275.0,85274.0,0.59190249]
[1743155997177,0.00038268,85275.0,85274.0,0.46006249]
[1743155997350,0.00038268,85275.0,85274.0,0.59190249]
[1743156000483,0.00038268,85275.0,85274.0,0.94050249]
[1743156000701,0.00038268,85275.0,85274.0,0.98211323]
[1743156001351,0.00038268,85275.0,85274.0,0.97911323]
[1743156001582,0.00038268,85275.0,85274.0,0.54227323]
[1743156001776,0.00038268,85275.0,85274.0,0.36452164]
[1743156002085,0.00038268,85275.0,85274.0,0.36752164]
[1743156002706,0.00038268,85275.0,85274.0,0.13579849]
[1743156002911,0.23491768,85275.0,85274.0,0.13579849]
[1743156003144,0.24664368,85275.0,85274.0,0.13579849]
[1743156003566,0.24664368,85275.0,85274.0,0.12125764]
[1743156003886,0.00038268,85275.0,85274.0,0.12125764]
[1743156004712,0.23491768,85275.0,85274.0,0.12125764]
[1743156005137,0.24664368,85275.0,85274.0,0.12125764]
[1743156005966,0.00038268,85275.0,85274.0,0.12125764]
[1743156006372,0.00038268,85275.0,85274.0,0.13579849]
[1743156006571,0.23491768,85275.0,85274.0,0.13579849]
[1743156007001,0.24664368,85275.0,85274.0,0.13579849]
[1743156007323,0.00038268,85275.0,85274.0,0.37033649]
[1743156007530,0.00038268,85275.0,85274.0,0.13579849]
[1743156008522,0.00038268,85275.0,85274.0,0.37033649]
[1743156008720,0.00038268,85275.0,85274.0,0.38206249]
[1743156009198,0.00038268,85275.0,85274.0,0.37033649]
[1743156009401,0.00038268,85275.0,85274.0,0.13579849]
[1743156009604,0.23491768,85275.0,85274.0,0.13579849]
[1743156010654,0.27419116,85275.0,85274.0,0.12125764]
[1743156010866,0.24664368,85275.0,85274.0,0.007]
[1743156011067,0.29344368,85275.0,85274.0,0.007]
[1743156011265,0.246313,85257.0,85250.0,0.0001691]
[1743156011497,0.5732899,85257.0,85250.0,0.0001691]
[1743156012909,0.5732899,85257.0,85256.0,0.10947737]
[1743156013179,0.5732899,85257.0,85256.0,0.004]
[1743156013719,0.5732899,85257.0,85256.0,0.009]
[1743156014123,0.5732899,85257.0,85256.0,0.005]
[1743156014333,0.246316,85256.0,85255.0,0.10547737]
[1743156014775,0.36057364,85256.0,85255.0,0.10547737]
[1743156015422,0.37213571,85256.0,85255.0,0.10547737]
[1743156015629,0.41743571,85256.0,85255.0,0.10947737]
[1743156017212,0.41743571,85256.0,85255.0,0.11047737]
[1743156017410,0.41743571,85256.0,85255.0,0.11347737]
[1743156017545,0.41743571,85256.0,85255.0,0.003]
[1743156017947,0.41743571,85256.0,85255.0,0.007]
[1743156018203,0.53473571,85256.0,85255.0,0.007]
[1743156019287,0.42047807,85256.0,85255.0,0.007]
[1743156020464,0.246331,85251.0,85250.0,0.0001691]
[1743156021794,0.246331,85251.0,85250.0,0.0081691]
[1743156025970,0.1173,85256.0,85255.0,0.246319]
[1743156026182,0.1173,85256.0,85255.0,0.36057664]
[1743156026679,0.1173,85256.0,85255.0,0.37511749]
[1743156027338,0.1173,85256.0,85255.0,0.37811749]
[1743156027542,0.1173,85256.0,85255.0,0.38011749]
[1743156027757,0.1173,85256.0,85255.0,0.37711749]
[1743156028169,0.1173,85256.0,85255.0,0.38211749]
[1743156028475,0.1173,85256.0,85255.0,0.38011749]
[1743156028681,0.1173,85256.0,85255.0,0.38411749]
[1743156031906,0.1173,85256.0,85255.0,0.50611749]
[1743156032738,0.1173,85256.0,85255.0,1.22163549]
[1743156033151,0.1173,85256.0,85255.0,1.22763549]
[1743156033350,0.1173,85256.0,85255.0,1.53263549]
[1743156033697,0.1173,85256.0,85255.0,1.52863549]
[1743156034096,0.1173,85256.0,85255.0,1.53463549]
[1743156035391,0.1173,85256.0,85255.0,1.52863549]
[1743156035571,0.1173,85256.0,85255.0,1.52263549]
[1743156035703,0.1173,85256.0,85255.0,1.52863549]
[1743156035913,0.1173,85256.0,85255.0,1.15154449]
[1743156036112,0.1173,85256.0,85255.0,1.11920149]
[1743156036313,0.1173,85256.0,85255.0,1.16043849]